[Event "Czech Youth U12 Boys 2024"]
[Site "Kouty nad Desnou"]
[Date "2024.03.09"]
[Round "1.1"]
[White "Lutskiy, Mikhail"]
[Black "Bartak, Tobias"]
[Result "1-0"]
[ECO "C42"]
[WhiteElo "1676"]
[BlackElo "1545"]
[Annotator "NA RC"]
[PlyCount "95"]
[EventDate "2024.03.10"]
[EventType "swiss"]
[EventRounds "9"]
[EventCountry "CZE"]
[SourceTitle "playchess.com"]
[Source "ChessBase"]
[SourceQuality "1"]
[TimeControl "40/5400+30:1800+30"]

1. e4 e5 2. Nf3 Nf6 3. Nc3 Bb4 4. Bc4 d6 5. d3 O-O 6. O-O h6 7. h3 Be6 8. Bb3 Nbd7 9. Be3 Nc5 10. a3 Nxb3 11. cxb3 Ba5 12. Nd2 c6 13. f4 Bb6 14. Bxb6 Qxb6+ 15. Kh1 Rfd8 16. Rb1 exf4 17. Rxf4 Qd4 18. Qe2 Qe5 19. Qf2 d5 20. d4 Qg5 21. e5 Nh7 22. Rf1 Rd7 23. b4 Rf8 24. Nb3 b6 25. b5 c5 26. dxc5 d4 27. Nxd4 Qxe5 28. Nxe6 Qxe6 29. c6 Re7 30. Re4 Qd6 31. Rxe7 Qxe7 32. Rd1 Ng5 33. Rd7 Qe6 34. Rxa7 Ne4 35. Nxe4 Qxe4 36. c7 Qe6 37. Rb7 Qc8 38. Qxb6 Qe8 39. Rb8 Qe1+ 40. Qg1 Qe6 41. Rxf8+ Kxf8 42. Qc5+ Qd6 43. Qxd6+ Kg8 44. c8=Q+ Kh7 45. Qcf8 f6 46. Qf7 h5 47. Qdxf6 h4 48. Q6xg7# 1-0

[Event "Czech Youth U12 Boys 2024"]
[Site "Kouty nad Desnou"]
[Date "2024.03.09"]
[Round "1.2"]
[White "Menkov, Ivan"]
[Black "Bukovskij, Dmitri"]
[Result "1/2-1/2"]
[ECO "B40"]
[WhiteElo "1524"]
[BlackElo "1665"]
[Annotator "NA RC"]
[PlyCount "66"]
[EventDate "2024.03.10"]
[EventType "swiss"]
[EventRounds "9"]
[EventCountry "CZE"]
[SourceTitle "playchess.com"]
[Source "ChessBase"]
[SourceQuality "1"]
[TimeControl "40/5400+30:1800+30"]

1. e4 c5 2. Nf3 e6 3. b3 b6 4. Bb2 Bb7 5. Nc3 Nf6 6. e5 Nd5 7. Nxd5 Bxd5 8. c4 Bb7 9. d4 cxd4 10. Nxd4 Bb4+ 11. Ke2 O-O 12. a3 Bc5 13. Ke1 Qh4 14. Qd3 Nc6 15. Rd1 Bxd4 16. Bxd4 Nxd4 17. Qxd4 Qxd4 18. Rxd4 Rfd8 19. Rg1 Rac8 20. f4 d6 21. exd6 Rc6 22. g4 Rcxd6 23. Rxd6 Rxd6 24. Bg2 Bxg2 25. Rxg2 Kf8 26. Ke2 Ke7 27. Ke3 Rd1 28. Rg3 Ra1 29. a4 g6 30. Kd4 Kd6 31. Rd3 f6 32. Kc3+ Kc6 33. Re3 Kd6 1/2-1/2

[Event "Czech Youth U12 Boys 2024"]
[Site "Kouty nad Desnou"]
[Date "2024.03.09"]
[Round "1.3"]
[White "Trejbal, Jindrich"]
[Black "Hlavacek, Pavel"]
[Result "1-0"]
[ECO "B13"]
[WhiteElo "1947"]
[BlackElo "1945"]
[Annotator "RC"]
[PlyCount "49"]
[EventDate "2024.03.10"]
[EventType "swiss"]
[EventRounds "9"]
[EventCountry "CZE"]
[SourceTitle "playchess.com"]
[Source "ChessBase"]
[SourceQuality "1"]
[TimeControl "40/5400+30:1800+30"]

1. e4 c6 2. d4 d5 3. exd5 cxd5 4. Bd3 Nc6 5. c3 Qc7 6. h3 Nf6 7. Nf3 e6 8. O-O Bd6 9. Re1 O-O 10. Nbd2 Bd7 11. Nb3 Rab8 12. Qe2 Rfc8 13. Bg5 a6 14. Ne5 Bxe5 15. dxe5 Ne8 16. f4 f6 17. exf6 Nxf6 18. Bxf6 gxf6 19. Qg4+ Kf7 20. Bxh7 e5 21. Qg6+ Ke7 22. Qg7+ Ke6 23. f5+ Kd6 24. Qxf6+ Be6 25. Qxe6# 1-0

[Event "Czech Youth U12 Boys 2024"]
[Site "Kouty nad Desnou"]
[Date "2024.03.09"]
[Round "1.4"]
[White "Hroch, Pavel"]
[Black "Vo, Daniel"]
[Result "0-1"]
[ECO "B92"]
[WhiteElo "1495"]
[BlackElo "1629"]
[Annotator "NA RC"]
[PlyCount "82"]
[EventDate "2024.03.10"]
[EventType "swiss"]
[EventRounds "9"]
[EventCountry "CZE"]
[SourceTitle "playchess.com"]
[Source "ChessBase"]
[SourceQuality "1"]
[TimeControl "40/5400+30:1800+30"]

1. e4 c5 2. Nf3 d6 3. d4 cxd4 4. Nxd4 Nf6 5. Nc3 a6 6. Be2 e5 7. Nb3 Be6 8. Be3 Be7 9. O-O O-O 10. Qd2 Nc6 11. f4 b5 12. a3 Bg4 13. Bf3 exf4 14. Bxf4 Ne5 15. Bxe5 dxe5 16. Bxg4 Qxd2 17. Nxd2 Nxg4 18. Nd5 Bc5+ 19. Kh1 Nf2+ 20. Rxf2 Bxf2 21. Rf1 Ba7 22. Rf5 f6 23. Ne7+ Kf7 24. Nd5 Rac8 25. c3 Ke6 26. b3 Rfd8 27. Rh5 h6 28. h3 Be3 29. Nf1 Bg5 30. Rxg5 hxg5 31. Nfe3 g6 32. c4 bxc4 33. bxc4 f5 34. exf5+ gxf5 35. Nb6 Rc6 36. Na4 Rd3 37. Nf1 Rd1 38. Kg1 Rxc4 39. Nb2 Rcc1 40. Nxd1 Rxd1 41. Kf2 Ra1 0-1

[Event "Czech Youth U12 Boys 2024"]
[Site "Kouty nad Desnou"]
[Date "2024.03.09"]
[Round "1.5"]
[White "Cerny, Ren"]
[Black "Strihavka, Petr"]
[Result "0-1"]
[ECO "C28"]
[WhiteElo "1623"]
[BlackElo "1447"]
[Annotator "NA RC"]
[PlyCount "52"]
[EventDate "2024.03.10"]
[EventType "swiss"]
[EventRounds "9"]
[EventCountry "CZE"]
[SourceTitle "playchess.com"]
[Source "ChessBase"]
[SourceQuality "1"]
[TimeControl "40/5400+30:1800+30"]

1. e4 e5 2. Nc3 Nf6 3. Bc4 Nc6 4. d3 d6 5. f4 Be7 6. Nf3 O-O 7. O-O Bg4 8. h3 Be6 9. Bb3 h6 10. f5 Bxb3 11. axb3 a6 12. Qe1 Nh5 13. Nd5 Rc8 14. Qf2 Nf6 15. Nxf6+ Bxf6 16. Qg3 Kh7 17. Nd2 Nd4 18. Qg4 Nxc2 19. Rf3 Nxa1 20. Rg3 Nc2 21. Nf3 Nd4 22. Nxd4 exd4 23. h4 Rg8 24. Qh5 Bxh4 25. Rg4 Bf6 26. Qxf7 Qe8 0-1

[Event "Czech Youth U12 Boys 2024"]
[Site "Kouty nad Desnou"]
[Date "2024.03.09"]
[Round "1.6"]
[White "Rybar, Vojta"]
[Black "Bucek, Vit"]
[Result "0-1"]
[ECO "B40"]
[WhiteElo "1435"]
[BlackElo "1603"]
[Annotator "NA RC"]
[PlyCount "52"]
[EventDate "2024.03.10"]
[EventType "swiss"]
[EventRounds "9"]
[EventCountry "CZE"]
[SourceTitle "playchess.com"]
[Source "ChessBase"]
[SourceQuality "1"]
[TimeControl "40/5400+30:1800+30"]

1. e4 c5 2. Nf3 e6 3. d4 cxd4 4. Nxd4 Nf6 5. Nc3 Nc6 6. Be3 Bb4 7. Bd3 d5 8. f3 O-O 9. O-O Qb6 10. Na4 Qc7 11. a3 Bd6 12. h3 a6 13. Nb3 b5 14. Nac5 d4 15. Bf2 Qb6 16. e5 Bxe5 17. Ne4 Bb7 18. c3 Nxe4 19. Bxe4 Qc7 20. Qc2 dxc3 21. bxc3 f5 22. Bd3 b4 23. Bc5 Bxc3 24. Bxf8 Bxa1 25. Rxa1 Rxf8 26. Nd4 Qb6 0-1

[Event "Czech Youth U12 Boys 2024"]
[Site "Kouty nad Desnou"]
[Date "2024.03.09"]
[Round "1.7"]
[White "Fadrny, Jonas"]
[Black "Kobersky, Matyas"]
[Result "0-1"]
[ECO "B93"]
[WhiteElo "1600"]
[BlackElo "1405"]
[Annotator "NA RC"]
[PlyCount "48"]
[EventDate "2024.03.10"]
[EventType "swiss"]
[EventRounds "9"]
[EventCountry "CZE"]
[SourceTitle "playchess.com"]
[Source "ChessBase"]
[SourceQuality "1"]
[TimeControl "40/5400+30:1800+30"]

1. e4 c5 2. Nf3 d6 3. d4 cxd4 4. Nxd4 Nf6 5. Nc3 a6 6. f4 e5 7. fxe5 dxe5 8. Nf3 Qxd1+ 9. Kxd1 Nc6 10. Bc4 Bb4 11. Re1 O-O 12. h3 Rd8+ 13. Bd2 Rd6 14. Ng5 Rd7 15. a3 Bxc3 16. bxc3 h6 17. Nf3 b5 18. Bb3 Bb7 19. Re2 Na5 20. Bxf7+ Rxf7 21. Nxe5 Re7 22. Ng6 Rxe4 23. Ne7+ Kf7 24. Rxe4 Bxe4 0-1

[Event "Czech Youth U12 Boys 2024"]
[Site "Kouty nad Desnou"]
[Date "2024.03.09"]
[Round "1.9"]
[White "Krivka, Lukas"]
[Black "Dlouhy, Martin"]
[Result "0-1"]
[ECO "D10"]
[WhiteElo "1567"]
[BlackElo "1965"]
[Annotator "RC"]
[PlyCount "86"]
[EventDate "2024.03.10"]
[EventType "swiss"]
[EventRounds "9"]
[EventCountry "CZE"]
[SourceTitle "playchess.com"]
[Source "ChessBase"]
[SourceQuality "1"]
[TimeControl "40/5400+30:1800+30"]

1. d4 d5 2. c4 c6 3. cxd5 cxd5 4. Nc3 Nc6 5. Nf3 Bf5 6. a3 e6 7. Bf4 a6 8. e3 Qb6 9. Na4 Qa5+ 10. Nc3 Qb6 11. Na4 Qa5+ 12. b4 Bxb4+ 13. axb4 Nxb4 14. Qd2 Nc2+ 15. Kd1 Qxd2+ 16. Kxd2 Nxa1 17. Nb6 Rd8 18. Bxa6 Nb3+ 19. Kc3 bxa6 20. Kxb3 Ke7 21. Bc7 Re8 22. Ne5 f6 23. Nc6+ Kf7 24. Nb4 Ne7 25. Nxa6 Nc8 26. Na4 Re7 27. Rc1 Bd3 28. N4c5 Bxa6 29. Nxa6 Na7 30. Bd6 Rb7+ 31. Nb4 Rc8 32. Bc5 Nc6 33. Rc3 Nxb4 34. Bxb4 Rxc3+ 35. Kxc3 Kg6 36. f3 Kf5 37. h4 h5 38. g3 g5 39. Bd6 g4 40. f4 Ke4 41. f5 exf5 42. Bf4 Rb1 43. Kd2 Rf1 0-1

[Event "Czech Youth U12 Boys 2024"]
[Site "Kouty nad Desnou"]
[Date "2024.03.10"]
[Round "2.1"]
[White "Kala, Jakub"]
[Black "Velim, Vojtech"]
[Result "0-1"]
[ECO "A17"]
[WhiteElo "1750"]
[BlackElo "1889"]
[Annotator "NA RC"]
[PlyCount "78"]
[EventDate "2024.03.10"]
[EventType "swiss"]
[EventCountry "CZE"]
[SourceTitle "playchess.com"]
[Source "ChessBase"]
[SourceQuality "1"]
[TimeControl "40/5400+30:1800+30"]

1. c4 {[%emt 0:00:06]} Nf6 {[%emt 0:00:05]} 2. Nc3 {[%emt 0:00:09]} e6 {[%emt 0:00:06]} 3. g3 {[%emt 0:00:20]} d5 {[%emt 0:00:51]} 4. d4 {[%emt 0:01:22]} c6 {[%emt 0:00:46]} 5. cxd5 {[%emt 0:02:39]} cxd5 {[%emt 0:01:52]} 6. Bg2 {[%emt 0:02:00]} Nc6 {[%emt 0:02:24]} 7. Bf4 {[%emt 0:01:35]} Qb6 {[%emt 0:01:07]} 8. e4 {[%emt 0:15:28]} dxe4 {[%emt 0:24:09]} 9. d5 {[%emt 0:14:19]} exd5 {[%emt 0:04:19]} 10. Nxd5 {[%emt 0:02:17]} Nxd5 {[%emt 0:00:08]} 11. Qxd5 {[%emt 0:00:39]} Bb4+ {[%emt 0:00:27]} 12. Kf1 {[%emt 0:11:11]} Be6 {[%emt 0:07:54]} 13. Qxe4 {[%emt 0:04:30]} O-O {[%emt 0:03:03]} 14. Ne2 {[%emt 0:07:31]} Rfe8 {[%emt 0:00:43]} 15. Be3 {[%emt 0:01:41]} Qa6 {[%emt 0:03:20]} 16. Qc2 {[%emt 0:11:34]} Rac8 {[%emt 0:11:39]} 17. Kg1 {[%emt 0:04:10]} Nd4 {[%emt 0:06:10]} 18. Nxd4 {[%emt 0:01:08]} Rxc2 {[%emt 0:00:36]} 19. Nxc2 {[%emt 0:00:03]} Bd6 {[%emt 0:07:25]} 20. Nd4 {[%emt 0:03:21]} Be5 {[%emt 0:02:07]} 21. h3 {[%emt 0:01:45]} Rd8 {[%emt 0:07:57]} 22. Bf1 {[%emt 0:03:55]} Bc4 {[%emt 0:02:02]} 23. Bxc4 Qxc4 {[%emt 0:00:10]} 24. Nb3 {[%emt 0:04:22]} Bxb2 {[%emt 0:01:40]} 25. Rb1 {[%emt 0:00:08]} Qc2 {[%emt 0:00:24]} 26. Kg2 {[%emt 0:00:52]} h6 {[%emt 0:01:25]} 27. Bxa7 {[%emt 0:01:29]} Ra8 {[%emt 0:04:35]} 28. Be3 {[%emt 0:00:10]} Rxa2 {[%emt 0:00:31]} 29. Nd2 {[%emt 0:03:45]} Bc3 {[%emt 0:01:25]} 30. Rhc1 {[%emt 0:01:45]} Qd3 {[%emt 0:00:06]} 31. Nf1 {[%emt 0:00:21]} b5 {[%emt 0:03:08]} 32. Kg1 {[%emt 0:01:00]} b4 {[%emt 0:00:55]} 33. Rb3 {[%emt 0:00:43]} Ra3 {[%emt 0:01:27]} 34. Rcb1 {[%emt 0:00:31]} Rxb3 {[%emt 0:00:23]} 35. Rxb3 {[%emt 0:00:29]} Qc2 {[%emt 0:00:09]} 36. Rxc3 {[%emt 0:00:30]} bxc3 {[%emt 0:00:11]} 37. Bd4 {[%emt 0:00:14]} Qd3 {[%emt 0:00:46]} 38. Bxc3 {[%emt 0:00:25]} Qxc3 {[%emt 0:00:08]} 39. Ne3 {[%emt 0:00:28]} Qa1+ {[%emt 0:00:27]} 0-1

[Event "Czech Youth U12 Boys 2024"]
[Site "Kouty nad Desnou"]
[Date "2024.03.10"]
[Round "2.2"]
[White "Fadrny, Jachym"]
[Black "Hladky, Mikulas"]
[Result "0-1"]
[ECO "C57"]
[WhiteElo "1729"]
[BlackElo "1798"]
[Annotator "NA RC"]
[PlyCount "48"]
[EventDate "2024.03.10"]
[EventType "swiss"]
[EventCountry "CZE"]
[SourceTitle "playchess.com"]
[Source "ChessBase"]
[SourceQuality "1"]
[TimeControl "40/5400+30:1800+30"]

1. e4 {[%emt 0:00:09]} e5 {[%emt 0:00:09]} 2. Nf3 {[%emt 0:00:21]} Nc6 {[%emt 0:00:09]} 3. Bc4 {[%emt 0:00:36]} Nf6 {[%emt 0:00:25]} 4. Ng5 {[%emt 0:00:44]} d5 {[%emt 0:00:18]} 5. exd5 {[%emt 0:00:47]} b5 {[%emt 0:00:37]} 6. Bf1 {[%emt 0:02:00]} Nd4 {[%emt 0:00:39]} 7. c3 {[%emt 0:00:49]} Nxd5 {[%emt 0:00:41]} 8. cxd4 {[%emt 0:00:52]} Qxg5 {[%emt 0:00:42]} 9. Bxb5+ {[%emt 0:00:26]} Kd8 {[%emt 0:05:17]} 10. O-O {[%emt 0:01:25]} Nf4 {[%emt 0:08:20]} 11. Qf3 {[%emt 0:07:41]} Rb8 {[%emt 0:01:14]} 12. Bc6 {[%emt 0:03:24]} Bg4 {[%emt 0:07:08]} 13. Qe4 {[%emt 0:04:48]} f5 {[%emt 0:02:49]} 14. Qxe5 {[%emt 0:04:51]} Bd6 {[%emt 0:00:27]} 15. Qe3 {[%emt 0:03:32]} Bh3 {[%emt 0:05:28]} 16. Re1 {[%emt 0:02:37]} Qg6 {[%emt 0:04:08]} 17. g3 {[%emt 0:02:18]} Rb6 {[%emt 0:06:13]} 18. Qc3 {[%emt 0:04:22]} Bb4 {[%emt 0:05:23]} 19. Qf3 {[%emt 0:05:45]} Qxc6 {[%emt 0:03:54]} 20. Qxc6 {[%emt 0:01:16]} Rxc6 {[%emt 0:00:42]} 21. gxf4 {[%emt 0:00:49]} Re8 {[%emt 0:02:06]} 22. Rxe8+ {[%emt 0:01:24]} Kxe8 {[%emt 0:00:05]} 23. Nc3 {[%emt 0:00:29]} Rg6+ {[%emt 0:00:27]} 24. Kh1 {[%emt 0:00:29]} Re6 {[%emt 0:00:12]} 0-1

[Event "Czech Youth U12 Boys 2024"]
[Site "Kouty nad Desnou"]
[Date "2024.03.10"]
[Round "2.3"]
[White "Zvolanek, Vojtech"]
[Black "Kolar, Edvard"]
[Result "0-1"]
[ECO "B35"]
[WhiteElo "1411"]
[BlackElo "1759"]
[Annotator "NA RC"]
[PlyCount "58"]
[EventDate "2024.03.10"]
[EventType "swiss"]
[EventCountry "CZE"]
[SourceTitle "playchess.com"]
[Source "ChessBase"]
[SourceQuality "1"]
[TimeControl "40/5400+30:1800+30"]

1. e4 {[%emt 0:00:08]} c5 {[%emt 0:00:09]} 2. Nf3 {[%emt 0:00:27]} Nc6 {[%emt 0:00:17]} 3. d4 {[%emt 0:00:16]} cxd4 {[%emt 0:00:24]} 4. Nxd4 {[%emt 0:00:20]} g6 {[%emt 0:00:23]} 5. Nc3 {[%emt 0:00:21]} Bg7 {[%emt 0:00:08]} 6. Be3 {[%emt 0:00:13]} Nf6 {[%emt 0:00:43]} 7. Bc4 {[%emt 0:00:44]} d6 {[%emt 0:01:10]} 8. f3 {[%emt 0:01:16]} O-O {[%emt 0:03:27]} 9. Bb3 {[%emt 0:01:16]} Bd7 {[%emt 0:01:06]} 10. Qd2 {[%emt 0:01:19]} Nxd4 {[%emt 0:04:57]} 11. Bxd4 {[%emt 0:00:23]} a5 {[%emt 0:01:43]} 12. a3 {[%emt 0:08:42]} b5 {[%emt 0:03:19]} 13. Nd5 {[%emt 0:08:07]} Ra6 {[%emt 0:31:56]} 14. O-O-O {[%emt 0:08:08]} Nxd5 {[%emt 0:02:16]} 15. Bxg7 {[%emt 0:07:16]} Kxg7 {[%emt 0:00:29]} 16. Bxd5 {[%emt 0:01:12]} e6 {[%emt 0:02:04]} 17. Ba2 {[%emt 0:02:08]} Rc6 {[%emt 0:02:22]} 18. h4 {[%emt 0:05:05]} Kg8 {[%emt 0:06:47]} 19. h5 {[%emt 0:05:35]} Qc7 {[%emt 0:02:46]} 20. c3 {[%emt 0:03:18]} b4 {[%emt 0:01:10]} 21. c4 {[%emt 0:08:54]} bxa3 {[%emt 0:01:01]} 22. b3 {[%emt 0:01:30]} a4 {[%emt 0:06:38]} 23. b4 {[%emt 0:01:22]} Rc8 {[%emt 0:04:02]} 24. Qd4 {[%emt 0:07:35]} e5 {[%emt 0:01:16]} 25. Qd3 {[%emt 0:05:56]} Be6 {[%emt 0:01:07]} 26. Kd2 {[%emt 0:10:37]} Bxc4 {[%emt 0:00:21]} 27. Bxc4 {[%emt 0:01:09]} Rxc4 {[%emt 0:00:04]} 28. Qxa3 {[%emt 0:01:53]} Qb6 {[%emt 0:01:28]} 29. Rc1 {[%emt 0:02:21]} Qf2+ {[%emt 0:00:15]} 0-1

[Event "Czech Youth U12 Boys 2024"]
[Site "Kouty nad Desnou"]
[Date "2024.03.10"]
[Round "2.4"]
[White "Policar, Martin"]
[Black "Artamonov, Mikhail"]
[Result "1-0"]
[ECO "D02"]
[WhiteElo "1758"]
[BlackElo "1727"]
[Annotator "NA RC"]
[PlyCount "131"]
[EventDate "2024.03.10"]
[EventType "swiss"]
[EventCountry "CZE"]
[SourceTitle "playchess.com"]
[Source "ChessBase"]
[SourceQuality "1"]
[TimeControl "40/5400+30:1800+30"]

1. d4 d5 {[%emt 0:02:13]} 2. Nf3 {[%emt 0:00:45]} e6 {[%emt 0:00:16]} 3. c4 {[%emt 0:00:28]} Bb4+ {[%emt 0:02:18]} 4. Bd2 {[%emt 0:00:20]} Bxd2+ {[%emt 0:01:10]} 5. Qxd2 {[%emt 0:00:16]} dxc4 {[%emt 0:02:30]} 6. Qb4 {[%emt 0:06:22]} Nc6 {[%emt 0:04:42]} 7. Qxc4 {[%emt 0:00:22]} Nf6 {[%emt 0:04:03]} 8. Nc3 {[%emt 0:01:48]} O-O {[%emt 0:06:26]} 9. g3 {[%emt 0:00:45]} Re8 {[%emt 0:01:29]} 10. Bg2 {[%emt 0:01:13]} Nd5 {[%emt 0:03:21]} 11. a3 {[%emt 0:09:23]} Nb6 {[%emt 0:02:04]} 12. Qd3 {[%emt 0:02:35]} e5 {[%emt 0:04:35]} 13. dxe5 {[%emt 0:07:55]} Qxd3 {[%emt 0:00:23]} 14. exd3 {[%emt 0:00:11]} Nxe5 {[%emt 0:00:09]} 15. Nxe5 {[%emt 0:00:18]} Rxe5+ {[%emt 0:00:01]} 16. Kd2 {[%emt 0:00:25]} Rf5 {[%emt 0:01:58]} 17. f4 {[%emt 0:01:58]} c6 {[%emt 0:01:07]} 18. Ne4 {[%emt 0:04:26]} Kf8 {[%emt 0:07:00]} 19. Rhe1 {[%emt 0:03:10]} Rd5 {[%emt 0:03:22]} 20. Ng5 {[%emt 0:03:28]} Rd8 {[%emt 0:02:55]} 21. Nxh7+ {[%emt 0:00:35]} Kg8 {[%emt 0:00:01]} 22. Ng5 {[%emt 0:00:36]} Bf5 {[%emt 0:03:38]} 23. Be4 {[%emt 0:00:56]} Bxe4 {[%emt 0:00:33]} 24. Rxe4 {[%emt 0:01:16]} Rd7 {[%emt 0:00:52]} 25. Rae1 {[%emt 0:00:20]} g6 {[%emt 0:01:54]} 26. Re8+ {[%emt 0:02:14]} Rxe8 {[%emt 0:00:04]} 27. Rxe8+ {[%emt 0:00:10]} Kg7 {[%emt 0:00:06]} 28. Nf3 {[%emt 0:01:38]} Nc4+ {[%emt 0:02:07]} 29. Kc3 {[%emt 0:01:44]} Nd6 {[%emt 0:00:16]} 30. Re1 {[%emt 0:01:47]} Nb5+ {[%emt 0:05:17]} 31. Kc2 {[%emt 0:01:06]} f6 {[%emt 0:01:46]} 32. a4 {[%emt 0:01:53]} Nc7 {[%emt 0:01:25]} 33. d4 {[%emt 0:11:21]} Kf7 {[%emt 0:03:50]} 34. b4 {[%emt 0:04:27]} Ne6 {[%emt 0:05:56]} 35. Kc3 {[%emt 0:01:20]} Nc7 {[%emt 0:01:26]} 36. Kc4 {[%emt 0:04:43]} Nd5 {[%emt 0:00:47]} 37. a5 {[%emt 0:01:29]} Nc7 {[%emt 0:05:39]} 38. Nd2 {[%emt 0:01:00]} Nb5 {[%emt 0:00:41]} 39. Nb3 {[%emt 0:01:32]} Na3+ {[%emt 0:00:20]} 40. Kd3 {[%emt 0:00:51]} Nb5 {[%emt 0:00:39]} 41. Re2 {[%emt 0:31:49]} Rd8 {[%emt 0:33:16]} 42. Re3 {[%emt 0:02:02]} Rd6 {[%emt 0:01:55]} 43. Re1 {[%emt 0:00:49]} Rd8 {[%emt 0:00:55]} 44. Rc1 {[%emt 0:00:41]} Rd6 {[%emt 0:02:07]} 45. Re1 {[%emt 0:03:56]} Rd8 {[%emt 0:00:41]} 46. g4 {[%emt 0:00:35]} Rh8 {[%emt 0:01:11]} 47. Nc5 {[%emt 0:02:50]} Rh3+ {[%emt 0:00:26]} 48. Re3 {[%emt 0:00:34]} Rxh2 {[%emt 0:01:15]} 49. Nxb7 {[%emt 0:00:18]} Rg2 {[%emt 0:01:44]} 50. Nd8+ {[%emt 0:00:28]} Kf8 {[%emt 0:00:12]} 51. g5 {[%emt 0:00:24]} fxg5 {[%emt 0:01:11]} 52. fxg5 {[%emt 0:00:31]} Rg1 {[%emt 0:03:06]} 53. Nxc6 {[%emt 0:04:48]} Rxg5 {[%emt 0:01:23]} 54. Re5 {[%emt 0:01:39]} Rg3+ {[%emt 0:00:37]} 55. Kc4 {[%emt 0:01:14]} Na3+ {[%emt 0:00:30]} 56. Kd5 {[%emt 0:00:28]} Nb5 {[%emt 0:00:42]} 57. Kc5 {[%emt 0:00:55]} Na3 {[%emt 0:01:33]} 58. Nxa7 {[%emt 0:00:41]} Rc3+ {[%emt 0:00:35]} 59. Kd5 {[%emt 0:00:14]} Rc7 {[%emt 0:00:55]} 60. Nc6 {[%emt 0:00:31]} Nb5 {[%emt 0:01:18]} 61. Kc5 {[%emt 0:01:12]} Nc3 {[%emt 0:01:05]} 62. Kb6 {[%emt 0:00:43]} Rd7 {[%emt 0:00:38]} 63. a6 {[%emt 0:00:37]} Na4+ {[%emt 0:00:33]} 64. Ka5 {[%emt 0:00:23]} Nb2 {[%emt 0:00:20]} 65. Rc5 {[%emt 0:00:44]} Nd3 {[%emt 0:00:47]} 66. a7 {[%emt 0:01:41]} 1-0

[Event "Czech Youth U12 Boys 2024"]
[Site "Kouty nad Desnou"]
[Date "2024.03.10"]
[Round "2.5"]
[White "Honcharov, Makar"]
[Black "Gresek, Oskar"]
[Result "1-0"]
[ECO "B01"]
[WhiteElo "1872"]
[BlackElo "1629"]
[Annotator "NA RC"]
[PlyCount "83"]
[EventDate "2024.03.10"]
[EventType "swiss"]
[EventCountry "CZE"]
[SourceTitle "playchess.com"]
[Source "ChessBase"]
[SourceQuality "1"]
[TimeControl "40/5400+30:1800+30"]

1. e4 {[%emt 0:00:01]} d5 {[%emt 0:00:12]} 2. exd5 {[%emt 0:00:15]} Nf6 {[%emt 0:00:07]} 3. Nf3 {[%emt 0:00:03]} Nxd5 {[%emt 0:00:09]} 4. c4 {[%emt 0:00:03]} Nf6 {[%emt 0:00:51]} 5. d4 {[%emt 0:00:05]} Bg4 {[%emt 0:01:57]} 6. Be3 {[%emt 0:00:03]} e6 {[%emt 0:02:31]} 7. Nc3 {[%emt 0:00:08]} c6 {[%emt 0:01:33]} 8. Qd2 {[%emt 0:00:18]} Nbd7 {[%emt 0:04:14]} 9. Be2 {[%emt 0:00:20]} Be7 {[%emt 0:02:10]} 10. h3 {[%emt 0:01:18]} Bf5 {[%emt 0:01:44]} 11. Rd1 {[%emt 0:03:08]} Nb6 {[%emt 0:03:48]} 12. g4 {[%emt 0:01:19]} Bg6 {[%emt 0:00:45]} 13. Ne5 {[%emt 0:00:13]} Nfd7 {[%emt 0:04:46]} 14. Nxg6 {[%emt 0:02:09]} hxg6 {[%emt 0:00:40]} 15. d5 {[%emt 0:01:47]} exd5 {[%emt 0:15:15]} 16. cxd5 {[%emt 0:00:06]} cxd5 {[%emt 0:01:03]} 17. Nxd5 {[%emt 0:00:06]} O-O {[%emt 0:03:01]} 18. Qc2 {[%emt 0:05:12]} Re8 {[%emt 0:08:30]} 19. Nxb6 {[%emt 0:04:50]} Bb4+ {[%emt 0:04:15]} 20. Kf1 {[%emt 0:00:51]} axb6 {[%emt 0:00:47]} 21. Bb5 {[%emt 0:00:38]} Re7 {[%emt 0:02:56]} 22. Qd3 {[%emt 0:05:29]} Qc7 {[%emt 0:06:14]} 23. a3 {[%emt 0:17:27]} Bc5 {[%emt 0:02:24]} 24. Bg5 {[%emt 0:00:31]} f6 {[%emt 0:04:26]} 25. Bxd7 {[%emt 0:09:01]} fxg5 {[%emt 0:09:54]} 26. Qd5+ {[%emt 0:03:49]} Kf8 {[%emt 0:01:38]} 27. Bb5 {[%emt 0:19:57]} Rf7 {[%emt 0:03:48]} 28. Rd2 {[%emt 0:00:16]} Be3 {[%emt 0:02:50]} 29. Re2 {[%emt 0:02:09]} Bf4 {[%emt 0:08:10]} 30. Bc4 {[%emt 0:00:53]} Qd7 {[%emt 0:02:10]} 31. Qxf7+ {[%emt 0:00:11]} Qxf7 {[%emt 0:00:14]} 32. Bxf7 {[%emt 0:00:04]} Kxf7 {[%emt 0:00:06]} 33. Kg2 {[%emt 0:00:03]} Re8 {[%emt 0:00:46]} 34. Rhe1 {[%emt 0:00:10]} Rxe2 {[%emt 0:00:15]} 35. Rxe2 {[%emt 0:00:08]} Kf6 {[%emt 0:00:30]} 36. Re4 {[%emt 0:01:49]} Be5 {[%emt 0:00:21]} 37. b3 {[%emt 0:00:09]} Bd6 {[%emt 0:00:53]} 38. a4 {[%emt 0:00:06]} Be5 {[%emt 0:01:06]} 39. Rb4 {[%emt 0:00:50]} Bc7 {[%emt 0:00:15]} 40. Kf3 {[%emt 0:01:01]} Ke5 {[%emt 0:00:19]} 41. Rb5+ {[%emt 0:30:07]} Kf6 {[%emt 0:30:24]} 42. Ke4 {[%emt 0:00:10]} 1-0